Workbook

Sheet Informasjon
B2: HØP 2018-2021 Simuleringsmodell for utarbeidelse av drifts- og investeringsbudsjett
B6: Fyll ut navn til politisk parti:

Sheet Oppsummering
B2: Oppsummering av partiets budsjettforslag 2018-2021
B3: =+Informasjon!D6 -> 0
B5: =IF(SUM(C15:F15)<>0,"NB! forslaget til driftsbudsjettet er i ubalanse. Vennligst returner til driftsbudsjettet og utfør nødvendige endringer inntil driftsbalansen viser NULL i alle 4 år.","") -> 
E7: Beløp i hele tusen kroner
B8: Drift | C8: 2018 | D8: 2019 | E8: 2020 | F8: 2021
B9: Brutto driftsramme iht rådmannens forslag | C9: =+Drift!D236 -> 10882361 | D9: =+Drift!E236 -> 10988407 | E9: =+Drift!F236 -> 11073093 | F9: =+Drift!G236 -> 11127345
B10: Netto driftsresultat iht. rådmannens forslag | C10: =+Drift!D9 -> 0.01615159056 | D10: =+Drift!E9 -> 0.02323216855 | E10: =+Drift!F9 -> 0.02721061504 | F10: =+Drift!G9 -> 0.0285980597
B12: Brutto driftsramme iht. partiets forslag (omtrentlig) | C12: =+Drift!D237 -> 10882361 | D12: =+Drift!E237 -> 10988407 | E12: =+Drift!F237 -> 11073093 | F12: =+Drift!G237 -> 11127345
B13: Netto driftsresultat iht. partiets forslag (omtrentlig) | C13: =+Drift!D11 -> 0.01615159056 | D13: =+Drift!E11 -> 0.02323216855 | E13: =+Drift!F11 -> 0.02721061504 | F13: =+Drift!G11 -> 0.0285980597
B15: =+Drift!C13 -> Sum driftsbalanse (skal være null) | C15: =+Drift!D13 -> 0 | D15: =+Drift!E13 -> 0 | E15: =+Drift!F13 -> 0 | F15: =+Drift!G13 -> 0
B17: =IF(SUM(C22:F22)<>0,"Foreslåtte endringer i investeringsbudsjettet øker investeringsnivået samlet de neste 4 årene med:","") ->  | F17: =+SUM(C22:F22) -> 0
B19: Investeringer | C19: 2018 | D19: 2019 | E19: 2020 | F19: 2021
B20: Brutto investeringer iht. rådmannens forslag | C20: =+Investering!D9 -> 1076750 | D20: =+Investering!E9 -> 959650 | E20: =+Investering!F9 -> 937550 | F20: =+Investering!G9 -> 1058450
B21: Brutto investeringer iht. partiets forslag | C21: =+Investering!D11 -> 1076750 | D21: =+Investering!E11 -> 959650 | E21: =+Investering!F11 -> 937550 | F21: =+Investering!G11 -> 1058450
B22: Endring sammenlignet med rådmannens forslag | C22: =+C21-C20 -> 0 | D22: =+D21-D20 -> 0 | E22: 0 | F22: 0
B24: Udekket | C24: =+Investering!D23 -> 0 | D24: =+Investering!E23 -> 0 | E24: =+Investering!F23 -> 0 | F24: =+Investering!G23 -> 0
B26: =IF(AND(SUM(C32:F32)<>0, F26>0),"Endringer i låneopptak medfører en økning i kommunens kapitalkostnader sammenlagt for neste 4 år på:","") ->  | F26: =SUM(C32:F32) -> 0
B28: Låneopptak og finanskostnader | C28: 2018 | D28: 2019 | E28: 2020 | F28: 2021
B29: Låneopptak iht. rådmannens forslag | C29: =+Investering!D13 -> 351923 | D29: =+Investering!E13 -> 646849 | E29: =+Investering!F13 -> 565016 | F29: =+Investering!G13 -> 404452
B30: Låneopptak iht. partiets forslag | C30: =+Investering!D15 -> 351923 | D30: =+Investering!E15 -> 646849 | E30: =+Investering!F15 -> 565016 | F30: =+Investering!G15 -> 404452
B31: Endring sammenlignet med rådmannens forslag | C31: =+Investering!D14 -> 0 | D31: =+Investering!E14 -> 0 | E31: =+Investering!F14 -> 0 | F31: =+Investering!G14 -> 0
B32: Endring i kapitalkostnader som følge av endring i låneopptak | C32: =+Finans!C41 -> 0 | D32: =+Finans!D41 -> 0 | E32: =+Finans!E41 -> 0 | F32: =+Finans!F41 -> 0

Sheet Investering
C2: HØP 2018-2021 INVESTERINGER
C4: =+Informasjon!D6 -> 0
G6: Beløp i hele tusen kroner
C7: 1. Oppsummering | D7: 2018 | E7: 2019 | F7: 2020 | G7: 2021 | H7: 2018-2021
C9: Rådmannens forslag til investeringsbudsjett | D9: =+D124 -> 1076750 | E9: =+E124 -> 959650 | F9: 937550 | G9: 1058450 | H9: =+D9+E9+F9+G9 -> 4032400
C10: Partiets endringer- totale endringer | D10: =+D125 -> 0 | E10: =+E125 -> 0 | F10: =+F125 -> 0 | G10: =+G125 -> 0 | H10: =+D10+E10+F10+G10 -> 0
C11: Nytt forslag til investeringsbudsjett justert for partiets endringer | D11: =+D9+D10 -> 1076750 | E11: =+E9+E10 -> 959650 | F11: =+F9+F10 -> 937550 | G11: =+G9+G10 -> 1058450 | H11: =+D11+E11+F11+G11 -> 4032400
C13: Låneopptak iht rådmannens forslag | D13: 351923 | E13: 646849 | F13: 565016 | G13: 404452 | H13: =+G13+F13+E13+D13 -> 1968240
C14: Låneopptak iht. partiet endringer | D14: =+D135 -> 0 | E14: =+E135 -> 0 | F14: =+F135 -> 0 | G14: =+G135 -> 0 | H14: =+D14+E14+F14+G14 -> 0
C15: Nytt nivå på låneopptak justert for partiet endringer | D15: =+D13+D14 -> 351923 | E15: =+E13+E14 -> 646849 | F15: =+F13+F14 -> 565016 | G15: =+G13+G14 -> 404452 | H15: =+H13+H14 -> 1968240
C17: Overføring fra drift iht rådmannens forslag | D17: 197200 | E17: 246000 | F17: 303600 | G17: 300000 | H17: =+G17+F17+E17+D17 -> 1046800
C18: Overføring fra drift iht. partiets endringer | D18: =+D132 -> 0 | E18: =+E132 -> 0 | F18: 0 | G18: 0 | H18: =+G18+F18+E18+D18 -> 0
C19: Nytt nivå på overføring fra drift justert for partiets endringer | D19: =+D17+D18 -> 197200 | E19: =+E17+E18 -> 246000 | F19: =+F17+F18 -> 303600 | G19: =+G17+G18 -> 300000 | H19: =+H17+H18 -> 1046800
C21: Udekket iht. rådmannens forslag | D21: =+(D129+D130)-D124 -> 0 | E21: =+(E129+E130)-E124 -> 0 | F21: =+(F129+F130)-F124 -> 0 | G21: =+(G129+G130)-G124 -> 0 | H21: =+D21+E21+F21+G21 -> 0
C23: Udekket iht. partiets forslag | D23: =+D136 -> 0 | E23: =+E136 -> 0 | F23: =+F136 -> 0 | G23: =+G136 -> 0 | H23: =+D23+E23+F23+G23 -> 0
C26: 2. HØP 2018-2021- Investeringstabell | D26: 2018 | E26: 2019 | F26: 2020 | G26: 2021 | H26: 2018-2021
C27: Diverse bygg, anlegg og felles investeringer
C28: Rådmannens forslag- sum diverse bygg, anelgg og felles investeringer | D28: 161350 | E28: 145900 | F28: 145700 | G28: 157500 | H28: =+G28+F28+E28+D28 -> 610450
H29: =+D29+E29+F29+G29 -> 0
H30: 0
H31: 0
H32: 0
H33: 0
H34: 0
H35: 0
C36: Sum partiets endringer- diverse bygg og anlegg | D36: =+D29+D30+D31+D32+D33+D34+D35 -> 0 | E36: =+E29+E30+E31+E32+E33+E34+E35 -> 0 | F36: =+F29+F30+F31+F32+F33+F34+F35 -> 0 | G36: =+G29+G30+G31+G32+G33+G34+G35 -> 0 | H36: =+H29+H30+H31+H32+H33+H34+H35 -> 0
C37: Nytt forslag til budsjett justert for partiets endringer- diverse bygg og anlegg | D37: =+D28+D36 -> 161350 | E37: =+E28+E36 -> 145900 | F37: =+F28+F36 -> 145700 | G37: =+G28+G36 -> 157500 | H37: =+H28+H36 -> 610450
C39: Skole
C40: Rådmannens forslag- sum skole | D40: 128900 | E40: 200500 | F40: 304000 | G40: 446400 | H40: =+G40+F40+E40+D40 -> 1079800
H41: 0
H42: 0
H43: 0
H44: 0
H45: 0
H46: 0
H47: 0
C48: Sum partiets endringer- skole | D48: =+D41+D42+D43+D44+D45+D46+D47 -> 0 | E48: =+E41+E42+E43+E44+E45+E46+E47 -> 0 | F48: =+F41+F42+F43+F44+F45+F46+F47 -> 0 | G48: =+G41+G42+G43+G44+G45+G46+G47 -> 0 | H48: =+H41+H42+H43+H44+H45+H46+H47 -> 0
C49: Nytt forslag til budsjett justert for partiets endringer- skole | D49: =+D40+D48 -> 128900 | E49: =+E40+E48 -> 200500 | F49: =+F40+F48 -> 304000 | G49: =+G40+G48 -> 446400 | H49: =+H40+H48 -> 1079800
C51: Barnehage
C52: Rådmannens forslag- sum barnehage | D52: 37000 | E52: 75500 | F52: 98800 | G52: 84000 | H52: =+G52+F52+E52+D52 -> 295300
H53: 0
H54: 0
H55: 0
H56: 0
H57: 0
H58: 0
H59: 0
C60: Sum partiets endringer- barnehage | D60: =+D53+D54+D55+D56+D57+D58+D59 -> 0 | E60: =+E53+E54+E55+E56+E57+E58+E59 -> 0 | F60: =+F53+F54+F55+F56+F57+F58+F59 -> 0 | G60: =+G53+G54+G55+G56+G57+G58+G59 -> 0 | H60: =+H53+H54+H55+H56+H57+H58+H59 -> 0
C61: Nytt forslag til budsjett justert for partiets endringer- barnehage | D61: =+D52+D60 -> 37000 | E61: =+E52+E60 -> 75500 | F61: =+F52+F60 -> 98800 | G61: =+G52+G60 -> 84000 | H61: =+H52+H60 -> 295300
C63: Helse og velferd (eks. bolig bygg KF)
C64: Rådmannens forslag- sum levekår | D64: 188550 | E64: 101700 | F64: 18350 | G64: 13500 | H64: =+G64+F64+E64+D64 -> 322100
H65: 0
H66: 0
H67: 0
H68: 0
H69: 0
H70: 0
H71: 0
C72: Sum partiets endringer- levekår | D72: =+D65+D66+D67+D68+D69+D70+D71 -> 0 | E72: 0 | F72: 0 | G72: 0 | H72: =+H65+H66+H67+H68+H69+H70+H71 -> 0
C73: Nytt forslag til budsjett justert for partiets endringer- levekår | D73: =+D64+D72 -> 188550 | E73: =+E64+E72 -> 101700 | F73: 18350 | G73: =+G64+G72 -> 13500 | H73: =+H64+H72 -> 322100 | I73: 18350
C75: Idrettsbygg
C76: Rådmannens forslag- sum idrettsbygg | D76: 182400 | E76: 94600 | F76: 61000 | G76: 60000 | H76: =+G76+F76+E76+D76 -> 398000
H77: 0
H78: 0
H79: 0
H80: 0
H81: 0
H82: 0
H83: 0
C84: Sum partiets endringer- idrettsbygg | D84: =+D77+D78+D79+D80+D81+D82+D83 -> 0 | E84: =+E77+E78+E79+E80+E81+E82+E83 -> 0 | F84: =+F77+F78+F79+F80+F81+F82+F83 -> 0 | G84: =+G77+G78+G79+G80+G81+G82+G83 -> 0 | H84: =+H77+H78+H79+H80+H81+H82+H83 -> 0
C85: Nytt forslag til budsjett justert for partiets endringer- idrettsbygg | D85: =+D76+D84 -> 182400 | E85: =+E76+E84 -> 94600 | F85: =+F76+F84 -> 61000 | G85: =+G76+G84 -> 60000 | H85: =+H76+H84 -> 398000
C87: Park og vei
C88: Rådmannens forslag- sum park og vei | D88: 174150 | E88: 126250 | F88: 109450 | G88: 109450 | H88: =+G88+F88+E88+D88 -> 519300
H89: =+D89+E89+F89+G89 -> 0
H90: 0
H91: 0
H92: 0
H93: 0
H94: 0
H95: 0
C96: Sum partiets endringer-park og vei | D96: =+D89+D90+D91+D92+D93+D94+D95 -> 0 | E96: =+E89+E90+E91+E92+E93+E94+E95 -> 0 | F96: =+F89+F90+F91+F92+F93+F94+F95 -> 0 | G96: =+G89+G90+G91+G92+G93+G94+G95 -> 0 | H96: =+H89+H90+H91+H92+H93+H94+H95 -> 0
C97: Nytt forslag til budsjett justert for partiets endringer- park og vei | D97: =+D88+D96 -> 174150 | E97: =+E88+E96 -> 126250 | F97: =+F88+F96 -> 109450 | G97: =+G88+G96 -> 109450 | H97: =+H88+H96 -> 519300
C99: Selvkostområder - Vann, avløp, renovasjon
C100: Rådmannens forslag- sum VAR-sektor | D100: 173100 | E100: 150200 | F100: 144250 | G100: 144600 | H100: =+G100+F100+E100+D100 -> 612150
H101: =+D101+E101+F101+G101 -> 0
H102: 0
H103: 0
H104: 0
H105: 0
H106: 0
H107: 0
C108: Sum partiets endringer- VAR-sektor | D108: =+D101+D102+D103+D104+D105+D106+D107 -> 0 | E108: =+E101+E102+E103+E104+E105+E106+E107 -> 0 | F108: =+F101+F102+F103+F104+F105+F106+F107 -> 0 | G108: =+G101+G102+G103+G104+G105+G106+G107 -> 0 | H108: =+H101+H102+H103+H104+H105+H106+H107 -> 0
C109: Nytt forslag til budsjett justert for partiets endringer- VAR-sektor | D109: =+D100+D108 -> 173100 | E109: =+E100+E108 -> 150200 | F109: =+F100+F108 -> 144250 | G109: =+G100+G108 -> 144600 | H109: =+H100+H108 -> 612150
C111: Kirkelig Fellesråd
C112: Rådmannens forslag- sum kirkelig fellesråd | D112: 31300 | E112: 65000 | F112: 56000 | G112: 43000 | H112: =+G112+F112+E112+D112 -> 195300
H113: =+D113+E113+F113+G113 -> 0
H114: 0
H115: 0
H116: 0
H117: 0
H118: 0
H119: 0
C120: Sum partiets endringer- kirkelig fellesråd | D120: =+D113+D114+D115+D116+D117+D118+D119 -> 0 | E120: =+E113+E114+E115+E116+E117+E118+E119 -> 0 | F120: =+F113+F114+F115+F116+F117+F118+F119 -> 0 | G120: =+G113+G114+G115+G116+G117+G118+G119 -> 0 | H120: =+H113+H114+H115+H116+H117+H118+H119 -> 0
C121: Nytt forslag til budsjett justert for partiets endringer- kirkelig fellesråd | D121: =+D112+D120 -> 31300 | E121: =+E112+E120 -> 65000 | F121: =+F112+F120 -> 56000 | G121: =+G112+G120 -> 43000 | H121: =+H112+H120 -> 195300
C123: Totale brutto investeringer
C124: Rådmannens forslag- totale brutto investeringer | D124: =+D112+D100+D88+D76+D64+D52+D40+D28 -> 1076750 | E124: =+E112+E100+E88+E76+E64+E52+E40+E28 -> 959650 | F124: =+F112+F100+F88+F76+F64+F52+F40+F28 -> 937550 | G124: =+G112+G100+G88+G76+G64+G52+G40+G28 -> 1058450 | H124: =+D124+E124+F124+G124 -> 4032400
C125: Partiets endringer- totale endringer ift. Rådmannens forslag | D125: =+D120+D108+D96+D84+D72+D60+D48+D36 -> 0 | E125: =+E120+E108+E96+E84+E72+E60+E48+E36 -> 0 | F125: =+F120+F108+F96+F84+F72+F60+F48+F36 -> 0 | G125: =+G120+G108+G96+G84+G72+G60+G48+G36 -> 0 | H125: =+D125+E125+F125+G125 -> 0
C126: Nytt forslag til budsjett justert for partiets endringer totalt | D126: =+D124+D125 -> 1076750 | E126: =+E124+E125 -> 959650 | F126: =+F124+F125 -> 937550 | G126: =+G124+G125 -> 1058450 | H126: =+H124+H125 -> 4032400
C128: Finansiering
C129: Rådmannens forslag låneopptak | D129: 344787 | E129: 389164 | F129: 434719 | G129: 535133 | H129: =+G129+F129+E129+D129 -> 1703803
C130: Rådmannensforslag egenfinansiering | D130: =+D124-D129 -> 731963 | E130: =+E124-E129 -> 570486 | F130: =+F124-F129 -> 502831 | G130: =+G124-G129 -> 523317 | H130: =+D130+E130+F130+G130 -> 2328597
C131: Partiets endringer i egenfinansiering føres under:
C132: Overføringer fra drift til investering (beregnes i driftsbudsjettet) | D132: =+Drift!D223 -> 0 | E132: =+Drift!E223 -> 0 | F132: =+Drift!F223 -> 0 | G132: =+Drift!G223 -> 0 | H132: =+D132+E132+F132+G132 -> 0
C133: Andre tilskudd | H133: =+D133+E133+F133+G133 -> 0
C134: Salgsinntekter | H134: =+D134+E134+F134+G134 -> 0
C135: Partiets endring i låneopptak (beregnes automatisk) | D135: =D125-(+D132+D133+D134) -> 0 | E135: =E125-(+E132+E133+E134) -> 0 | F135: 0 | G135: 0 | H135: =+D135+E135+F135+G135 -> 0
C136: Udekket iht. partiets endringer | D136: =+D126-(D129+D130+D132+D133+D134+D135) -> 0 | E136: =+E126-(E129+E130+E132+E133+E134+E135) -> 0 | F136: 0 | G136: 0

Sheet Drift
C2: HØP 2018-2021 DRIFT
C3: =+Informasjon!D6 -> 0
F5: Beløp i hele tusen kroner
C6: 1. Oppsummering | D6: 2018 | E6: =D6+1 -> 2019 | F6: =E6+1 -> 2020 | G6: =F6+1 -> 2021
C8: Brutto budsjettramme iht. rådmannnens forslag | D8: =+D236 -> 10882361 | E8: =+E236 -> 10988407 | F8: 11073093 | G8: 11127345
C9: Netto driftsresultat iht. rådmannens forslag | D9: 0.01615159056 | E9: 0.02323216855 | F9: 0.02721061504 | G9: 0.0285980597
C10: Brutto budsjettramme iht. partiets forslag | D10: =+D237 -> 10882361 | E10: =+E237 -> 10988407 | F10: 11073093 | G10: 11127345
C11: Netto driftsresultat iht. partiets forslag (omtrentlig) | D11: =+Diagram!C62 -> 0.01615159056 | E11: =+Diagram!D62 -> 0.02323216855 | F11: =+Diagram!E62 -> 0.02721061504 | G11: =+Diagram!F62 -> 0.0285980597
C13: Sum driftsbalanse (skal være null) | D13: =D240 -> 0 | E13: =E240 -> 0 | F13: =F240 -> 0 | G13: =G240 -> 0
C16: 2. HØP 2018-2021- driftsrammetabell | D16: 2018 | E16: =D16+1 -> 2019 | F16: =E16+1 -> 2020 | G16: =F16+1 -> 2021
C19: Barnehage
C22: Sum brutto endringer iht. rådmannens forslag | D22: =9130+2500 -> 11630 | E22: =6930+2500 -> 9430 | F22: =6780+2500 -> 9280 | G22: =6780+2500 -> 9280
C23: Brutto budsjettramme iht. rådmannens forslag | D23: =1312003+20000 -> 1332003 | E23: =1309803+20000 -> 1329803 | F23: =1309653+20000 -> 1329653 | G23: =1309653+20000 -> 1329653
C24: Legg inn dine endringer under:
C35: Sum endring iht. partiets forslag | D35: =SUM(D25:D34) -> 0 | E35: =SUM(E25:E34) -> 0 | F35: =SUM(F25:F34) -> 0 | G35: =SUM(G25:G34) -> 0
C36: Ny budsjettramme iht. partiets forslag | D36: =+D23+D35 -> 1332003 | E36: =+E23+E35 -> 1329803 | F36: =+F23+F35 -> 1329653 | G36: =+G23+G35 -> 1329653
C40: Skole
C43: Sum brutto endringer iht. rådmannens forslag | D43: =73607+3400 -> 77007 | E43: =71107+3400 -> 74507 | F43: =58107+3400 -> 61507 | G43: =58927+3400 -> 62327
C44: Brutto budsjettramme iht. rådmannens forslag | D44: =1797862+27000 -> 1824862 | E44: =1795362+27000 -> 1822362 | F44: =1782362+27000 -> 1809362 | G44: =1783182+27000 -> 1810182
C45: Legg inn dine endringer under:
C56: Sum endring iht. partiets forslag | D56: =SUM(D46:D55) -> 0 | E56: =SUM(E46:E55) -> 0 | F56: 0 | G56: 0
C57: Ny budsjettramme iht. partiets forslag | D57: =+D44+D56 -> 1824862 | E57: =+E44+E56 -> 1822362 | F57: =+F44+F56 -> 1809362 | G57: =+G44+G56 -> 1810182
C61: Barn og unge
C64: Sum brutto endringer iht. rådmannens forslag | D64: =16690+1000 -> 17690 | E64: =16910+1000 -> 17910 | F64: =17030+1000 -> 18030 | G64: =16780+1000 -> 17780
C65: Brutto budsjettramme iht. rådmannens forslag | D65: =503725+7565 -> 511290 | E65: =503945+7565 -> 511510 | F65: =504065+7565 -> 511630 | G65: =503815+7565 -> 511380 | H65: 503815
C66: Legg inn dine endringer under:
C77: Sum endring iht. partiets forslag | D77: =SUM(D67:D76) -> 0 | E77: =SUM(E67:E76) -> 0 | F77: 0 | G77: 0
C78: Ny budsjettramme iht. partiets forslag | D78: =+D65+D77 -> 511290 | E78: =+E65+E77 -> 511510 | F78: =+F65+F77 -> 511630 | G78: =+G65+G77 -> 511380
C82: Helse og velferd
C85: Sum brutto endringer iht. rådmannens forslag | D85: -15211 | E85: -35896 | F85: -40746 | G85: -61146
C86: Brutto budsjettramme iht. rådmannens forslag | D86: =3310423+164430 -> 3474853 | E86: =3289538+164630 -> 3454168 | F86: =3284488+164830 -> 3449318 | G86: =3263888+165030 -> 3428918
C87: Legg inn dine endringer under:
C100: Sum endring iht. partiets forslag | D100: =SUM(D88:D99) -> 0 | E100: =SUM(E88:E99) -> 0 | F100: 0 | G100: 0
C101: Ny budsjettramme iht. partiets forslag | D101: =+D86+D100 -> 3474853 | E101: =+E86+E100 -> 3454168 | F101: =+F86+F100 -> 3449318 | G101: =+G86+G100 -> 3428918
C105: Samfunnsutvikling
C108: Sum brutto endringer iht. rådmannens forslag | D108: 14815 | E108: 14815 | F108: 12815 | G108: 7815
C109: Brutto budsjettramme iht. rådmannens forslag | D109: 115964 | E109: 115964 | F109: 113964 | G109: 108964
C110: Legg inn dine endringer under:
C121: Sum endring iht. partiets forslag | D121: =SUM(D111:D120) -> 0 | E121: =SUM(E111:E120) -> 0 | F121: 0 | G121: 0
C122: Ny budsjettramme iht. partiets forslag | D122: =+D109+D121 -> 115964 | E122: =+E109+E121 -> 115964 | F122: =+F109+F121 -> 113964 | G122: =+G109+G121 -> 108964
C126: Bymiljø og utbygging
C129: Sum brutto endringer iht. rådmannens forslag | D129: 44948 | E129: 77223 | F129: 104711 | G129: 119517
C130: Brutto budsjettramme iht. rådmannens forslag | D130: 1404659 | E130: 1436934 | F130: 1464422 | G130: 1479228
C131: Legg inn dine endringer under:
C142: Sum endring iht. partiets forslag | D142: =SUM(D132:D141) -> 0 | E142: =SUM(E132:E141) -> 0 | F142: 0 | G142: 0
C143: Ny budsjettramme iht. partiets forslag | D143: =+D130+D142 -> 1404659 | E143: =+E130+E142 -> 1436934 | F143: =+F130+F142 -> 1464422 | G143: =+G130+G142 -> 1479228
C147: Innbyggerdialog, kultur og næring
C150: Sum brutto endringer iht. rådmannens forslag | D150: 14989 | E150: 13219 | F150: 13219 | G150: 15719
C151: Brutto budsjettramme iht. rådmannens forslag | D151: 218847 | E151: 217077 | F151: 217077 | G151: 219577
C152: Legg inn dine endringer under:
C164: Sum endring iht. partiets forslag | D164: =SUM(D153:D163) -> 0 | E164: =SUM(E153:E163) -> 0 | F164: 0 | G164: 0
C165: Ny budsjettramme iht. partiets forslag | D165: =+D151+D164 -> 218847 | E165: =+E151+E164 -> 217077 | F165: =+F151+F164 -> 217077 | G165: =+G151+G164 -> 219577
C169: Stab og støttefunksjoner
C172: Sum brutto endringer iht. rådmannens forslag | D172: 22698 | E172: 21580 | F172: 21580 | G172: 21580
C173: Brutto budsjettramme iht. rådmannens forslag | D173: 378212 | E173: 377094 | F173: 377094 | G173: 377094
C174: Legg inn dine endringer under:
C187: Sum endring iht. partiets forslag | D187: =SUM(D175:D186) -> 0 | E187: =SUM(E175:E186) -> 0 | F187: 0 | G187: 0
C188: Ny budsjettramme iht. partiets forslag | D188: =+D173+D187 -> 378212 | E188: =+E173+E187 -> 377094 | F188: =+F173+F187 -> 377094 | G188: =+G173+G187 -> 377094
C192: Felles utgifter
C195: Sum endring iht. rådmannens forslag | D195: -76476 | E195: 25348 | F195: 102426 | G195: 164202
C196: Budsjettramme iht. rådmannens forslag | D196: 1621671 | E196: 1723495 | F196: 1800573 | G196: 1862349
C197: Legg inn dine endringer under:
C205: Sum endring iht. partiets forslag | D205: =+D198+D199+D200+D201+D202+D203+D204+D230+D231 -> 0 | E205: =+E198+E199+E200+E201+E202+E203+E204+E230+E231 -> 0 | F205: =+F198+F199+F200+F201+F202+F203+F204+F230+F231 -> 0 | G205: 0
C206: Ny budsjettramme iht. partiets forslag | D206: =+D196+D205 -> 1621671 | E206: =+E196+E205 -> 1723495 | F206: 1800573 | G206: 1862349
C209: Felles inntekter
C213: Legg inn dine endringer under:
C214: Skatt fra inntekt og formue
C215: Rammetilskudd
C216: Eiendomsskatt
C220: Legg inn dine endringer i disposisjonsfond under:
C221: Disposisjonsfond
C223: Endring i overføring fra drift til investering (klikk på knappen under)
C226: Sum endringer i felles inntekter og utgifter iht. partiets forslag | D226: =ROUND(+D215+D216+D217+D205+D214+D218+D219+D221+D223,-1) -> 0 | E226: =ROUND(+E215+E216+E217+E205+E214+E218+E219+E221+E223,-1) -> 0 | F226: 0 | G226: 0
C229: Endringer i låneopptak i investeringsbudsjettet samt endringer i overføringer fra drift har medført følgende endringer i renter og avdrag:
C230: Renter, endret låneopptak (beregnes av modellen) | D230: =+Finans!C36 -> 0 | E230: =+Finans!D36 -> 0 | F230: =+Finans!E36 -> 0 | G230: =+Finans!F36 -> 0
C231: Endring avdragsbetalinger (beregnes av modellen) | D231: =+Finans!C37 -> 0 | E231: =+Finans!D37 -> 0 | F231: =+Finans!E37 -> 0 | G231: =+Finans!F37 -> 0
C236: Brutto driftsramme iht. rådmannens forslag | D236: 10882361 | E236: 10988407 | F236: 11073093 | G236: 11127345
C237: Ny brutto driftsramme iht. partiets forslag | D237: =+D188+D206+D165+D143+D122+D101+D78+D57+D36+D226 -> 10882361 | E237: =+E188+E206+E165+E143+E122+E101+E78+E57+E36+E226 -> 10988407 | F237: =+F188+F206+F165+F143+F122+F101+F78+F57+F36+F226 -> 11073093 | G237: =+G188+G206+G165+G143+G122+G101+G78+G57+G36+G226 -> 11127345
C240: Sum driftsbalanse (skal være null) | D240: =ROUND(+D35+D56+D77+D100+D121+D142+D164+D187+D226,-1) -> 0 | E240: =ROUND(+E35+E56+E77+E100+E121+E142+E164+E187+E226,-1) -> 0 | F240: =ROUND(+F35+F56+F77+F100+F121+F142+F164+F187+F226,-1) -> 0 | G240: =ROUND(+G35+G56+G77+G100+G121+G142+G164+G187+G226,-1) -> 0
H303: *

Sheet Finans (hidden)
B10: Låneopptak
B14: Rådmannens forslag: | C14: 2018 | D14: 2019 | E14: 2020 | F14: 2021
B15: Ordinært låneopptak til investeringer | C15: =+Investering!D129 -> 344787 | D15: =+Investering!E129 -> 389164 | E15: =+Investering!F129 -> 434719 | F15: =+Investering!G129 -> 535133
B16: Startlån
B17: Låneopptak til videre utlån (ikke startlån)
B18: Sum låneopptak rådmannens forslag | C18: =+C15+C16+C17 -> 344787 | D18: =+D15+D16+D17 -> 389164 | E18: 434719 | F18: 535133
B20: Partiets forslag til endringer i låneopptak: | C20: 2018 | D20: 2019 | E20: 2020 | F20: 2021
B21: Iht. budsjettforslag fra partiet | C21: =+Investering!D132 -> 0 | D21: =+Investering!E132 -> 0 | E21: =+Investering!F132 -> 0 | F21: =+Investering!G132 -> 0
B22: Startlån
B23: Låneopptak til videre utlån (ikke startlån)
B24: Sum endringer i låneopptak per år iht. partiets forslag | C24: =+C21+C22+C23 -> 0 | D24: =+D21+D22+D23 -> 0 | E24: 0 | F24: 0
B26: Nytt låneopptak per år | C26: =+C24+C18 -> 344787 | D26: =+D24+D18 -> 389164 | E26: 434719 | F26: 535133
B30: Endring i finanskostnader
B32: Endring i finanskostnader | C32: 2018 | D32: 2019 | E32: 2020 | F32: 2021
B33: Rentesats | C33: 0.015 | D33: 0.017 | E33: 0.02 | F33: 0.022
B34: Nedbetalingstid (år) | C34: 30 | D34: 30 | E34: 30 | F34: 30
B35: Nytt lån | C35: =+Investering!D135 -> 0 | D35: =+Investering!E135 -> 0 | E35: =+Investering!F135 -> 0 | F35: =+Investering!G135 -> 0
B36: Renter | C36: =+C35*C33 -> 0 | D36: =+(C39+D35)*D33 -> 0 | E36: =+(D39+E35)*E33 -> 0 | F36: =+(E39+F35)*F33 -> 0
B37: Avdrag | C37: =+C35/C34 -> 0 | D37: =+(C35+D35)/D34 -> 0 | E37: =+(C35+D35+E35)/E34 -> 0 | F37: =+(C35+D35+E35+F35)/F34 -> 0
B38: Sum lån 1.januar | C38: =+C35 -> 0 | D38: =+C39+D35 -> 0 | E38: =+D39+E35 -> 0 | F38: =+E39+F35 -> 0
B39: Sum lån 31.desember | C39: =+C38-C37 -> 0 | D39: =+D38-D37 -> 0 | E39: =+E38-E37 -> 0 | F39: =+F38-F37 -> 0
B41: Sum endring finanskostnader | C41: =+C36+C37 -> 0 | D41: =+D36+D37 -> 0 | E41: =+E36+E37 -> 0 | F41: =+F36+F37 -> 0

Sheet Diagram (hidden)
B2: Investeringer | C2: 2018 | D2: 2019 | E2: 2020 | F2: 2021
B3: =+Investering!C27 -> Diverse bygg, anlegg og felles investeringer | C3: =+Investering!D37 -> 161350 | D3: =+Investering!E37 -> 145900 | E3: =+Investering!F37 -> 145700 | F3: =+Investering!G37 -> 157500
B4: =+Investering!C39 -> Skole | C4: =+Investering!D49 -> 128900 | D4: =+Investering!E49 -> 200500 | E4: =+Investering!F49 -> 304000 | F4: =+Investering!G49 -> 446400
B5: =+Investering!C51 -> Barnehage | C5: =+Investering!D61 -> 37000 | D5: =+Investering!E61 -> 75500 | E5: =+Investering!F61 -> 98800 | F5: =+Investering!G61 -> 84000
B6: Helse og velferd (eks. Bolig bygg KF) | C6: =+Investering!D73 -> 188550 | D6: =+Investering!E73 -> 101700 | E6: =+Investering!F73 -> 18350 | F6: =+Investering!G73 -> 13500
B7: =+Investering!C75 -> Idrettsbygg | C7: =+Investering!D85 -> 182400 | D7: =+Investering!E85 -> 94600 | E7: =+Investering!F85 -> 61000 | F7: =+Investering!G85 -> 60000
B8: =+Investering!C87 -> Park og vei | C8: =+Investering!D97 -> 174150 | D8: =+Investering!E97 -> 126250 | E8: =+Investering!F97 -> 109450 | F8: =+Investering!G97 -> 109450
B9: Vann, avløp, renovasjon | C9: =+Investering!D109 -> 173100 | D9: =+Investering!E109 -> 150200 | E9: =+Investering!F109 -> 144250 | F9: =+Investering!G109 -> 144600
B10: Kirkelig Fellesråd | C10: =+Investering!D121 -> 31300 | D10: =+Investering!E121 -> 65000 | E10: =+Investering!F121 -> 56000 | F10: =+Investering!G121 -> 43000
B12: Drift | C12: 2018 | D12: 2019 | E12: 2020 | F12: 2021
B13: =+Drift!C19 -> Barnehage | C13: =+Drift!D36 -> 1332003 | D13: =+Drift!E36 -> 1329803 | E13: =+Drift!F36 -> 1329653 | F13: =+Drift!G36 -> 1329653
B14: =+Drift!C40 -> Skole | C14: =+Drift!D57 -> 1824862 | D14: =+Drift!E57 -> 1822362 | E14: =+Drift!F57 -> 1809362 | F14: =+Drift!G57 -> 1810182
B15: =+Drift!C61 -> Barn og unge | C15: =+Drift!D78 -> 511290 | D15: =+Drift!E78 -> 511510 | E15: =+Drift!F78 -> 511630 | F15: =+Drift!G78 -> 511380
B16: =+Drift!C82 -> Helse og velferd | C16: =+Drift!D101 -> 3474853 | D16: =+Drift!E101 -> 3454168 | E16: =+Drift!F101 -> 3449318 | F16: =+Drift!G101 -> 3428918
B17: =+Drift!C105 -> Samfunnsutvikling | C17: =+Drift!D122 -> 115964 | D17: =+Drift!E122 -> 115964 | E17: =+Drift!F122 -> 113964 | F17: =+Drift!G122 -> 108964
B18: Kultur og byutvikling | C18: 218847 | D18: 217077 | E18: 217077 | F18: 219577
B19: Bymiljø og utbygging | C19: 1520623 | D19: 1552898 | E19: 1578386 | F19: 1588192
B20: Stab og støttefunksjoner | C20: 378212 | D20: 377094 | E20: 377094 | F20: 377094
B21: =+Drift!C192 -> Felles utgifter | C21: =+Drift!D206 -> 1621671 | D21: =+Drift!E206 -> 1723495 | E21: =+Drift!F206 -> 1800573 | F21: =+Drift!G206 -> 1862349
B23: Indikator | C23: 2012 | D23: 2013 | E23: 2014 | F23: 2015 | G23: 2016 | H23: 2017 | I23: 2018 | J23: 2019 | K23: 2020 | L23: 2021
B24: Egenfinansiering | C24: 0.58 | D24: 0.42 | E24: 0.47 | F24: 0.45 | G24: 0.52 | H24: 0.58 | I24: =+(Investering!D126-(Investering!D129+Investering!D135))/Investering!D126 -> 0.6797891804 | J24: =+(Investering!E126-(Investering!E129+Investering!E135))/Investering!E126 -> 0.5944729849 | K24: =+(Investering!F126-(Investering!F129+Investering!F135))/Investering!F126 -> 0.5363244627 | L24: =+(Investering!G126-(Investering!G129+Investering!G135))/Investering!G126 -> 0.4944182531
B25: Måltall > 50 % | C25: 0.5 | D25: 0.5 | E25: 0.5 | F25: 0.5 | G25: 0.5 | H25: 0.5 | I25: 0.5 | J25: 0.5 | K25: 0.5 | L25: 0.5
B26: Netto driftsresultat | C26: 0.031 | D26: 0.019 | E26: -0.012 | F26: 0.033 | G26: 0.05 | H26: 0.017 | I26: =+C62 -> 0.01615159056 | J26: =+D62 -> 0.02323216855 | K26: =+E62 -> 0.02721061504 | L26: =+F62 -> 0.0285980597
B27: Måltall > 3 % | C27: 0.03 | D27: 0.03 | E27: 0.03 | F27: 0.03 | G27: 0.03 | H27: 0.03 | I27: 0.03 | J27: 0.03 | K27: 0.03 | L27: 0.03
B28: Gjeldsgrad | C28: 0.55 | D28: 0.56 | E28: 0.6 | F28: 0.61 | G28: 0.64 | H28: 0.65 | I28: =+C38 -> 0.6433175598 | J28: =+D38 -> 0.6423700784 | K28: =+E38 -> 0.6457562498 | L28: =+F38 -> 0.6595318318
B29: Måltall < 60 % | C29: 0.6 | D29: 0.6 | E29: 0.6 | F29: 0.6 | G29: 0.6 | H29: 0.6 | I29: 0.6 | J29: 0.6 | K29: 0.6 | L29: 0.6
B32: Gjeldsgrad
C34: 2018 | D34: 2019 | E34: 2020 | F34: 2021
B35: Driftsinntekter | C35: 9604503 | D35: 9670987 | E35: 9724771 | F35: 9753354
B36: Gjeldsnivå for bykassen ekskl. startlån | C36: =6178745.43333332+Finans!C39 -> 6178745.433 | D36: =6212352.67777778+Finans!D39 -> 6212352.678 | E36: =6279831.65092592+Finans!E39 -> 6279831.651 | F36: =6432647.43007716+Finans!F39 -> 6432647.43
B38: Gjeldsgrad | C38: =+C36/C35 -> 0.6433175598 | D38: =+D36/D35 -> 0.6423700784 | E38: 0.6457562498 | F38: 0.6595318318
B41: Netto driftsresultat
C42: 2018 | D42: 2019 | E42: 2020 | F42: 2021
B43: Driftsinntekter rådmannens forslag | C43: 9604503 | D43: 9670987 | E43: 9724771 | F43: 9753354
B44: Driftsutgifter rådmannens forslag | C44: 9672003 | D44: 9674326 | E44: 9674167 | F44: 9676820
B45: Brutto driftsresultat | C45: =+C43-C44 -> -67500 | D45: =+D43-D44 -> -3339 | E45: 50604 | F45: 76534
B46: Resultat eksterne finanstransaksjoner | C46: -169469 | D46: -166190 | E46: -182102 | F46: -195590
B47: Motpost avskrivninger | C47: 392097 | D47: 394207 | E47: 396115 | F47: 397983
B48: Nettodriftsresultat | C48: =+C45+C46+C47 -> 155128 | D48: =+D45+D46+D47 -> 224678 | E48: 264617 | F48: 278927
B49: Nettodriftsresultat i % | C49: =+C48/C43 -> 0.01615159056 | D49: =+D48/D43 -> 0.02323216855 | E49: 0.02721061504 | F49: 0.0285980597
B53: Politiske endringer i utgifter ift. rådmannens forslag | C53: =+Drift!D35+Drift!D56+Drift!D77+Drift!D100+Drift!D121+Drift!D142+Drift!D164+Drift!D187+Drift!D205 -> 0 | D53: =+Drift!E35+Drift!E56+Drift!E77+Drift!E100+Drift!E121+Drift!E142+Drift!E164+Drift!E187+Drift!E205 -> 0 | E53: =+Drift!F35+Drift!F56+Drift!F77+Drift!F100+Drift!F121+Drift!F142+Drift!F164+Drift!F187+Drift!F205 -> 0 | F53: =+Drift!G35+Drift!G56+Drift!G77+Drift!G100+Drift!G121+Drift!G142+Drift!G164+Drift!G187+Drift!G205 -> 0
B54: Politiske endringer i inntekter iht. rådmannens forslag | C54: =+Drift!D214+Drift!D215+Drift!D216+Drift!D217+Drift!D218+Drift!D219 -> 0 | D54: =+Drift!E214+Drift!E215+Drift!E216+Drift!E217+Drift!E218+Drift!E219 -> 0 | E54: =+Drift!F214+Drift!F215+Drift!F216+Drift!F217+Drift!F218+Drift!F219 -> 0 | F54: =+Drift!G214+Drift!G215+Drift!G216+Drift!G217+Drift!G218+Drift!G219 -> 0
B56: Driftsinntekter etter politiske endringer | C56: =+C54+C43 -> 9604503 | D56: =+D54+D43 -> 9670987 | E56: =+E54+E43 -> 9724771 | F56: =+F54+F43 -> 9753354
B57: Driftutgifter etter politiske endringer | C57: =+C44+C53 -> 9672003 | D57: =+D44+D53 -> 9674326 | E57: 9674167 | F57: 9676820
B58: Brutto driftsresultat etter politiske endringer | C58: =+C56-C57 -> -67500 | D58: =+D56-D57 -> -3339 | E58: 50604 | F58: 76534
B59: Resultat eksterne finanstransaksjoner | C59: -169469 | D59: -166190 | E59: -182102 | F59: -195590
B60: Motpost avskrivninger | C60: 392097 | D60: 394207 | E60: 396115 | F60: 397983
B61: Nettodriftsresultat (etter politiske endringer) | C61: =+C58+C59+C60 -> 155128 | D61: =+D58+D59+D60 -> 224678 | E61: 264617 | F61: 278927
B62: Nettodriftsresultat (etter politiske endringer) | C62: =+C61/C56 -> 0.01615159056 | D62: =+D61/D56 -> 0.02323216855 | E62: 0.02721061504 | F62: 0.0285980597
